[Event "*** Titled Tuesday Blitz"]
[Site "Chess.com"]
[Date "2020.05.26"]
[Round "10"]
[White "nikitakhoroshev"]
[Black "swisspower96"]
[Result "0-1"]
[WhiteElo "2451"]
[BlackElo "2603"]
[TimeControl "180+1"]
[EndTime "12:05:05 PDT"]
[Termination "swisspower96 won on time"]

1. d4 {[%clk 0:03:00.9]} 1... Nf6 {[%clk 0:02:59.7]} 2. Bf4 {[%clk 0:02:52.7]}
2... d5 {[%clk 0:02:59.2]} 3. e3 {[%clk 0:02:52.8]} 3... c5 {[%clk 0:02:57.9]}
4. c3 {[%clk 0:02:51.7]} 4... Nc6 {[%clk 0:02:56.7]} 5. Nd2 {[%clk 0:02:51.8]}
5... Qb6 {[%clk 0:02:52.2]} 6. Qb3 {[%clk 0:02:51.2]} 6... c4 {[%clk 0:02:52.1]}
7. Qxb6 {[%clk 0:02:48.8]} 7... axb6 {[%clk 0:02:51.9]} 8. a3 {[%clk 0:02:49.5]}
8... b5 {[%clk 0:02:41.5]} 9. Rc1 {[%clk 0:02:49]} 9... h6 {[%clk 0:02:37.6]}
10. f3 {[%clk 0:02:41.3]} 10... Nd7 {[%clk 0:02:34.2]} 11. e4 {[%clk 0:02:38]}
11... Nb6 {[%clk 0:02:34.6]} 12. Be2 {[%clk 0:02:32.3]} 12... g5 {[%clk
0:02:34.7]} 13. Bg3 {[%clk 0:02:30.8]} 13... Bg7 {[%clk 0:02:35.3]} 14. h4
{[%clk 0:02:21.8]} 14... e5 {[%clk 0:02:23.1]} 15. dxe5 {[%clk 0:02:17.7]} 15...
Nxe5 {[%clk 0:02:23.2]} 16. hxg5 {[%clk 0:02:17.2]} 16... hxg5 {[%clk
0:02:23.6]} 17. Rxh8+ {[%clk 0:02:17.5]} 17... Bxh8 {[%clk 0:02:24.5]} 18. Nh3
{[%clk 0:02:04.2]} 18... Bxh3 {[%clk 0:02:08.2]} 19. gxh3 {[%clk 0:02:05.1]}
19... Na4 {[%clk 0:02:08.2]} 20. Rb1 {[%clk 0:02:04.5]} 20... Rd8 {[%clk
0:02:04]} 21. exd5 {[%clk 0:01:59]} 21... Rxd5 {[%clk 0:02:03.2]} 22. Ne4 {[%clk
0:01:59.6]} 22... Kd7 {[%clk 0:01:40.1]} 23. b3 {[%clk 0:01:52.1]} 23... Nc5
{[%clk 0:01:17.6]} 24. bxc4 {[%clk 0:01:44.9]} 24... Ncd3+ {[%clk 0:00:55]} 25.
Kf1 {[%clk 0:01:35.8]} 25... Nxc4 {[%clk 0:00:52.5]} 26. Bxd3 {[%clk 0:01:28.5]}
26... Rxd3 {[%clk 0:00:52.4]} 27. Rxb5 {[%clk 0:01:29.2]} 27... Rxf3+ {[%clk
0:00:44.1]} 28. Kg2 {[%clk 0:01:29.4]} 28... Re3 {[%clk 0:00:38.4]} 29. Rxb7+
{[%clk 0:01:24.8]} 29... Kc6 {[%clk 0:00:32.1]} 30. Rc7+ {[%clk 0:01:24.8]}
30... Kd5 {[%clk 0:00:32.6]} 31. Rc5+ {[%clk 0:01:08.2]} 31... Kxe4 {[%clk
0:00:29.5]} 32. Rxc4+ {[%clk 0:01:08.6]} 32... Kd3 {[%clk 0:00:30.1]} 33. Rg4
{[%clk 0:00:58.9]} 33... Bf6 {[%clk 0:00:21.3]} 34. c4 {[%clk 0:00:52.6]} 34...
Be7 {[%clk 0:00:20.6]} 35. Bf2 {[%clk 0:00:42.7]} 35... Re2 {[%clk 0:00:17.8]}
36. Kf3 {[%clk 0:00:36]} 36... Ra2 {[%clk 0:00:14.8]} 37. Rd4+ {[%clk
0:00:33.3]} 37... Kc3 {[%clk 0:00:15]} 38. Rd7 {[%clk 0:00:25.4]} 38... Bxa3
{[%clk 0:00:07.7]} 39. c5 {[%clk 0:00:21]} 39... f5 {[%clk 0:00:05.2]} 40. Rd5
{[%clk 0:00:20.5]} 40... g4+ {[%clk 0:00:04.9]} 41. hxg4 {[%clk 0:00:21.4]}
41... fxg4+ {[%clk 0:00:05.8]} 42. Kg3 {[%clk 0:00:21.1]} 42... Kc4 {[%clk
0:00:06.2]} 43. Rg5 {[%clk 0:00:20.5]} 43... Kb5 {[%clk 0:00:05.4]} 44. Rxg4
{[%clk 0:00:20.2]} 44... Kc6 {[%clk 0:00:05]} 45. Rg6+ {[%clk 0:00:20.1]} 45...
Kc7 {[%clk 0:00:05.6]} 46. Kf3 {[%clk 0:00:19.4]} 46... Rc2 {[%clk 0:00:06.2]}
47. Bg3+ {[%clk 0:00:17.1]} 47... Kb7 {[%clk 0:00:06.9]} 48. Rb6+ {[%clk
0:00:16.3]} 48... Ka7 {[%clk 0:00:05.5]} 49. Rb5 {[%clk 0:00:14.7]} 49... Ka6
{[%clk 0:00:03.7]} 50. Rb6+ {[%clk 0:00:13.1]} 50... Ka5 {[%clk 0:00:04.3]} 51.
Rb8 {[%clk 0:00:10.4]} 51... Bxc5 {[%clk 0:00:03.9]} 52. Ke4 {[%clk 0:00:09.4]}
52... Rc3 {[%clk 0:00:03.8]} 53. Be5 {[%clk 0:00:09.1]} 53... Rc4+ {[%clk
0:00:03.5]} 54. Kd5 {[%clk 0:00:09.3]} 54... Rc2 {[%clk 0:00:04]} 55. Ra8+
{[%clk 0:00:08.8]} 55... Kb4 {[%clk 0:00:04.3]} 56. Rb8+ {[%clk 0:00:08.8]}
56... Ka4 {[%clk 0:00:04.9]} 57. Rb7 {[%clk 0:00:07.1]} 57... Bb4 {[%clk
0:00:04.6]} 58. Bd4 {[%clk 0:00:06.4]} 58... Kb3 {[%clk 0:00:04.9]} 59. Rb8
{[%clk 0:00:05.5]} 59... Rd2 {[%clk 0:00:05.3]} 60. Ke4 {[%clk 0:00:05.3]} 60...
Rd1 {[%clk 0:00:05]} 61. Be5 {[%clk 0:00:04.7]} 61... Kc4 {[%clk 0:00:04.8]} 62.
Rc8+ {[%clk 0:00:04.2]} 62... Bc5 {[%clk 0:00:05.3]} 63. Kf5 {[%clk 0:00:03.8]}
63... Rf1+ {[%clk 0:00:05.2]} 64. Ke6 {[%clk 0:00:04.1]} 64... Re1 {[%clk
0:00:05.4]} 65. Kf5 {[%clk 0:00:04.3]} 65... Rf1+ {[%clk 0:00:05.6]} 66. Ke6
{[%clk 0:00:04.1]} 66... Rd1 {[%clk 0:00:06]} 67. Kf5 {[%clk 0:00:04.3]} 67...
Rd5 {[%clk 0:00:05.7]} 68. Ke4 {[%clk 0:00:03.7]} 68... Rd7 {[%clk 0:00:06.3]}
69. Kf5 {[%clk 0:00:03.6]} 69... Kd5 {[%clk 0:00:06.2]} 70. Bf6 {[%clk
0:00:03.7]} 70... Rf7 {[%clk 0:00:06.4]} 71. Re8 {[%clk 0:00:03.4]} 71... Bd6
{[%clk 0:00:06.3]} 72. Re6 {[%clk 0:00:03]} 72... Rd7 {[%clk 0:00:06.2]} 73. Re8
{[%clk 0:00:03]} 73... Rb7 {[%clk 0:00:06.2]} 74. Re1 {[%clk 0:00:02.3]} 74...
Rb3 {[%clk 0:00:06]} 75. Rd1+ {[%clk 0:00:02.8]} 75... Kc6 {[%clk 0:00:06.6]}
76. Ke6 {[%clk 0:00:02.9]} 76... Re3+ {[%clk 0:00:06.4]} 77. Kf7 {[%clk
0:00:03.3]} 77... Kd7 {[%clk 0:00:06.5]} 78. Rd4 {[%clk 0:00:02.3]} 78... Rf3
{[%clk 0:00:06.6]} 79. Kg6 {[%clk 0:00:02.2]} 79... Ke6 {[%clk 0:00:06.8]} 80.
Rg4 {[%clk 0:00:02.4]} 80... Rxf6+ {[%clk 0:00:06.1]} 81. Kg5 {[%clk 0:00:01.4]}
81... Rf5+ {[%clk 0:00:05.9]} 82. Kg6 {[%clk 0:00:01.6]} 82... Re5 {[%clk
0:00:05.1]} 0-1